fUSD/lending_fUSD_20241223
["ID","MTS","AMOUNT","RATE_DAILY","PERIOD"]
[346392991,1734936646354,-1265.0,0.00019798,2]
[346392992,1734936646363,-2011.0,0.00019798,2]
[346392993,1734936646372,-633.0,0.00019798,2]
[346392994,1734936646381,-150.0,0.00019798,2]
[346392995,1734936646390,-565.0,0.00019798,2]
[346392996,1734936646399,-1899.0,0.00019798,2]
[346392997,1734936646408,-818.0,0.00019798,2]
[346392998,1734936646417,-924.0,0.00019798,2]
[346392999,1734936646427,-1256.0,0.00019798,2]
[346393000,1734936646436,-3770.0,0.00019798,2]
[346393001,1734936646445,-536.0,0.00019798,2]
[346393002,1734936646454,-3682.0,0.00019798,2]
[346393003,1734936646463,-150.0,0.00019798,2]
[346393004,1734936646472,-150.0,0.00019798,2]
[346393005,1734936646481,-3887.0,0.00019798,2]
[346393006,1734936646490,-1170.0,0.00019798,2]
[346393007,1734936646500,-2352.90125407,0.00019809,2]
[346393008,1734936646509,-500.0,0.0001984,2]
[346393009,1734936646519,-150.0,0.00019846,4]
[346393010,1734936646528,-3279.083,0.00019852,2]
[346393011,1734936646538,-168.577,0.00019852,2]
[346393012,1734936646547,-170.94088626,0.00019899,2]
[346393013,1734936646556,-159.14148815,0.00019899,2]
[346393014,1734936646565,-1492.68244452,0.00019899,2]
[346393015,1734936646574,-170.94088625,0.000199,2]
[346393016,1734936646583,-1492.68244452,0.000199,2]
[346393017,1734936646592,-1514.0,0.000199,2]
[346393018,1734936646602,-250.0,0.000199,7]
[346393019,1734936646611,-2201.88143354,0.000199,2]
[346393020,1734936646620,-170.94088625,0.000199,2]
[346393021,1734936646630,-159.14148814,0.000199,2]
[346393022,1734936646639,-2352.90125407,0.000199,2]
[346393023,1734936646648,-3000.0,0.0001993,2]
[346393024,1734936646658,-501.3833241,0.00019973,2]
[346393025,1734936646666,-501.17530365,0.00019973,2]
[346393026,1734936646675,-500.0,0.00019973,2]
[346393027,1734936646684,-152.92434071,0.00019973,2]
[346393028,1734936646693,-501.08097073,0.00019973,2]
[346393029,1734936646702,-513.17462337,0.00019973,2]
[346393030,1734936646712,-161.40832527,0.00019973,2]
[346393031,1734936646720,-500.0,0.00019973,2]
[346393032,1734936646729,-634.71032386,0.00019973,2]
[346393033,1734936646739,-505.48268446,0.00019973,2]
[346393034,1734936646748,-159.87254163,0.00019973,2]
[346393035,1734936646757,-160.1124278,0.00019973,2]
[346393036,1734936646767,-500.0,0.00019973,2]
[346393037,1734936646776,-203.598505,0.00019996,2]
[346393038,1734936646785,-203.598505,0.00019996,2]
[346393039,1734936646795,-203.598505,0.00019996,2]
[346393040,1734936646804,-203.598505,0.00019996,2]
[346393041,1734936646814,-203.598505,0.00019996,2]
[346393042,1734936646823,-203.598505,0.00019996,2]
[346393043,1734936646832,-192316.4260863,0.00019996,2]
[346393044,1734936646842,-500.0,0.00019997,2]
[346393045,1734936646852,-500.0,0.00019997,2]
[346393046,1734936646868,-500.0,0.00019997,2]
[346393047,1734936646876,-500.0,0.00019997,2]
[346393048,1734936646885,-500.0,0.00019997,2]
[346393049,1734936646894,-500.0,0.00019997,2]
[346393050,1734936646904,-500.0,0.00019997,2]
[346393051,1734936646913,-500.0,0.00019997,2]
[346393052,1734936646922,-500.0,0.00019997,2]
[346393053,1734936646932,-500.0,0.00019997,2]
[346393054,1734936646940,-500.0,0.00019997,2]
[346393055,1734936646949,-500.0,0.00019997,2]
[346393056,1734936646959,-500.0,0.00019997,2]
[346393057,1734936646969,-500.0,0.00019997,2]
[346393058,1734936646978,-500.0,0.00019997,2]
[346393059,1734936646986,-500.0,0.00019997,2]
[346393060,1734936646995,-500.0,0.00019997,2]
[346393061,1734936647004,-500.0,0.00019997,2]
[346393062,1734936647014,-500.0,0.00019997,2]
[346393063,1734936647023,-500.0,0.00019997,2]
[346393064,1734936647033,-500.0,0.00019997,2]
[346393065,1734936647042,-500.0,0.00019997,2]
[346393066,1734936647051,-500.0,0.00019997,2]
[346393067,1734936647061,-500.0,0.00019997,2]
[346393068,1734936647070,-500.0,0.00019997,2]
[346393069,1734936647079,-500.0,0.00019997,2]
[346393070,1734936647089,-500.0,0.00019997,2]
[346393071,1734936647098,-500.0,0.00019997,2]
[346393072,1734936647107,-500.0,0.00019997,2]
[346393073,1734936647116,-500.0,0.00019997,2]
[346393074,1734936647125,-500.0,0.00019997,2]
[346393075,1734936647135,-500.0,0.00019997,2]
[346393076,1734936647144,-500.0,0.00019997,2]
[346393077,1734936647153,-500.0,0.00019997,2]
[346393078,1734936647162,-500.0,0.00019997,2]
[346393079,1734936647172,-500.0,0.00019997,2]
[346393080,1734936647181,-500.0,0.00019997,2]
[346393081,1734936647190,-500.0,0.00019997,2]
[346393082,1734936647200,-500.0,0.00019997,2]
[346393083,1734936647210,-500.0,0.00019997,2]
[346393084,1734936647219,-500.0,0.00019997,2]
[346393085,1734936647228,-500.0,0.00019997,2]
[346393086,1734936647237,-500.0,0.00019997,2]
[346393087,1734936647246,-500.0,0.00019997,2]
[346393088,1734936647257,-500.0,0.00019997,2]
[346393089,1734936647266,-500.0,0.00019997,2]
[346393090,1734936647275,-500.0,0.00019997,2]
[346393091,1734936647285,-500.0,0.00019997,2]
[346393092,1734936647294,-500.0,0.00019997,2]
[346393093,1734936647303,-500.0,0.00019997,2]
[346393094,1734936647312,-500.0,0.00019997,2]
[346393095,1734936647322,-500.0,0.00019997,2]
[346393096,1734936647331,-500.0,0.00019997,2]
[346393097,1734936647341,-500.0,0.00019997,2]
[346393098,1734936647350,-500.0,0.00019997,2]
[346393099,1734936647359,-500.0,0.00019997,2]
[346393100,1734936647368,-500.0,0.00019997,2]
[346393101,1734936647378,-500.0,0.00019997,2]
[346393102,1734936647387,-500.0,0.00019997,2]
[346393103,1734936647396,-500.0,0.00019997,2]
[346393104,1734936647405,-500.0,0.00019997,2]
[346393105,1734936647577,-500.0,0.00019997,2]
[346393106,1734936647587,-500.0,0.00019997,2]
[346393107,1734936647596,-500.0,0.00019997,2]
[346393108,1734936647605,-500.0,0.00019997,2]
[346393109,1734936647614,-500.0,0.00019997,2]
[346393110,1734936647624,-500.0,0.00019997,2]
[346393111,1734936647634,-500.0,0.00019997,2]
[346393112,1734936647644,-500.0,0.00019997,2]
[346393113,1734936647654,-500.0,0.00019997,2]
[346393114,1734936647663,-500.0,0.00019997,2]
[346393115,1734936647672,-500.0,0.00019997,2]
[346393116,1734936647682,-500.0,0.00019997,2]
[346393117,1734936647692,-500.0,0.00019997,2]
[346393118,1734936647701,-500.0,0.00019997,2]
[346393119,1734936647710,-500.0,0.00019997,2]
[346393120,1734936647719,-500.0,0.00019997,2]
[346393121,1734936647728,-500.0,0.00019997,2]
[346393122,1734936647738,-500.0,0.00019997,2]
[346393123,1734936647747,-500.0,0.00019997,2]
[346393124,1734936647756,-500.0,0.00019997,2]
[346393125,1734936647765,-500.0,0.00019997,2]
[346393126,1734936647774,-500.0,0.00019997,2]
[346393127,1734936647784,-500.0,0.00019997,2]
[346393128,1734936647793,-500.0,0.00019997,2]
[346393129,1734936647802,-500.0,0.00019997,2]
[346393130,1734936647812,-3337.1,0.00019997,2]
[346393131,1734936647821,-14097.60668519,0.00019997,2]
[346393132,1734936647830,-17393.77395224,0.00019997,2]
[346393133,1734936647840,-348.0203446,0.00019998,2]
[346393134,1734936647849,-655.0409819,0.00019998,2]
[346393135,1734936647860,-50998.41401473,0.00019998,2]
[346393136,1734936647869,-300.0,0.00019999,2]
[346393137,1734936647880,-666.0,0.00019999,2]
[346393138,1734936647889,-1164.35285782,0.00019999,5]
[346393139,1734936647899,-559.55,0.00019999,2]
[346393140,1734936647908,-500.0,0.00019999,2]
[346393141,1734936647918,-500.0,0.00019999,2]
[346393142,1734936647927,-500.0,0.00019999,2]
[346393143,1734936647936,-500.0,0.00019999,2]
[346393144,1734936647946,-3000.0,0.00019999,2]
[346393145,1734936647955,-3200976.96483894,0.00019999,3]
[346393146,1734936647964,-20033.49564064,0.00019999,3]
[346393147,1734936647974,-16544.39486439,0.0002,2]
[346393148,1734936647983,-2226392.33055964,0.0002,2]
[346393149,1734936648263,-19957.80506696,0.0002,2]
[346393150,1734936648274,-141119.9999998,0.0002,2]
[346393151,1734936648291,-9655.69090564,0.0002,2]
[346393152,1734936648308,-6666.28826109,0.0002,2]
[346393153,1734936648319,-6263.04801921,0.0002,2]
[346393154,1734936648330,-667.52428162,0.0002,2]
[346393155,1734936648341,-1455.78996131,0.0002,2]
[346393156,1734936648352,-25933.96890745,0.0002,2]
[346393157,1734936648364,-1642.60428772,0.0002,2]
[346393158,1734936648375,-24052.01273388,0.0002,2]
[346393159,1734936648479,-500.0,0.00019178,2]
[346393160,1734936648488,-4591.92821088,0.0002,2]
[346393161,1734936648747,-260.59892228,0.00019452,2]
[346393162,1734936648791,-239.40107772,0.00019452,2]
[346393163,1734936648801,-500.0,0.00019726,2]
[346393164,1734936648810,-8202.17839224,0.0002,2]
[346393165,1734936648828,-433.92126404,0.0002,2]
[346393166,1734936648839,-1925.13775293,0.0002,2]
[346393167,1734936648873,-2918.182826,0.0002,2]
[346393168,1734936649322,-193.26312091,0.00019164,2]
[346393169,1734936649332,-79.68571704,0.000199,2]
[346393170,1734936649351,-1412.99672748,0.000199,2]
[346393171,1734936649361,-989680.65162332,0.0002,2]
[346393172,1734936649398,-19013.0,0.0002,2]
[346393173,1734936649410,-1813.7999,0.0002,2]
[346393174,1734936649487,-2736.62660386,0.0002,2]
[346393175,1734936649499,-346.250014,0.0002,2]
[346393176,1734936649660,-4776.633,0.0002,2]
[346393177,1734936649671,-7086.56499457,0.0002,2]
[346393178,1734936649682,-380240.0,0.0002,2]
[346393179,1734936649692,-47333.44765068,0.0002,2]
[346393180,1734936649703,-2783.01278413,0.0002,2]
[346393181,1734936649718,-193.26312091,0.00019208,2]
[346393182,1734936649727,-1063.48407487,0.0002,2]
[346393183,1734936649737,-63456.10109665,0.0002,2]
[346393184,1734936663138,227.68,0.00010137,2]
[346393185,1734936930910,273.042772,0.0002,120]
[346393186,1734936950086,151.0,0.00019,60]
[346393187,1734936961280,151.0,0.0002,120]
[346393188,1734936969463,151.0,0.0002,120]
[346393189,1734936978913,151.0,0.00019,60]
[346393190,1734936989088,151.0,0.00019,60]
[346393191,1734936996968,151.0,0.00019,60]
[346393192,1734937005019,151.0,0.00019,60]
[346393193,1734937013275,151.0,0.00019,60]
[346393194,1734937024626,151.0,0.0002,120]
[346393196,1734937200332,151.0,0.0002,120]
[346393197,1734937595145,-227.68,0.00016813,2]
[346393198,1734937595166,-63.27304456,0.00016825,2]
[346393199,1734937639120,188.70842434,0.00012111,2]
[346393214,1734937832008,-864.13,0.00016926,2]
[346393215,1734937832017,-455.63049726,0.000178,2]
[346393216,1734937832026,-835.02408123,0.000179,2]
[346393217,1734937832035,-150.0,0.00018,2]
[346393218,1734937832044,-150.0,0.00018,2]
[346393219,1734937832054,-150.0,0.00018,2]
[346393220,1734937832064,-835.02408122,0.00018113,2]
[346393221,1734937832073,-300.0,0.00018212,2]
[346393222,1734937832082,-661.21338836,0.00018213,2]
[346393223,1734937832101,-971.73618872,0.00018213,2]
[346393224,1734937832270,-4576.38215958,0.00018213,2]
[346393225,1734937832281,-1409.25229469,0.00018213,2]
[346393226,1734937832465,-320.29041264,0.00018213,2]
[346393231,1734937837994,-1039.58900093,0.00018213,2]
[346393232,1734937838006,-14921.53655508,0.00018213,2]
[346393233,1734937838016,-250.0,0.00018268,2]
[346393234,1734937838025,-250.0,0.00018356,2]
[346393235,1734937838034,-1000.0,0.00018394,2]
[346393236,1734937838044,-200.0,0.00018474,2]
[346393237,1734937838054,-250.0,0.00018522,2]
[346393238,1734937838065,-1935.0,0.00018796,2]
[346393239,1734937838075,-735.57,0.00018862,2]
[346393240,1734937838084,-201.76864557,0.00019,2]
[346393241,1734937838093,-232.588,0.00019,2]
[346393242,1734937838102,-167.35,0.00019006,2]
[346393243,1734937838112,-828.77,0.00019063,2]
[346393244,1734937838121,-6742.61829505,0.00019078,2]
[346393245,1734937838131,-150.93681909,0.00019078,2]
[346393246,1734937838140,-154.61049688,0.000191,2]
[346393247,1734937838149,-154.61049672,0.00019121,2]
[346393248,1734937838158,-333.121815,0.00019148,2]
[346393249,1734937838167,-154.61049672,0.00019165,2]
[346393250,1734937838176,-152.64,0.00019168,2]
[346393251,1734937838186,-248.25,0.00019168,2]
[346393252,1734937838195,-6742.61829505,0.00019169,2]
[346393253,1734937838204,-500.0,0.00019178,2]
[346393254,1734937838214,-500.0,0.00019178,2]
[346393255,1734937838224,-500.0,0.00019178,2]
[346393256,1734937838233,-500.0,0.00019178,2]
[346393257,1734937838242,-500.0,0.00019178,2]
[346393258,1734937838251,-506.49634567,0.00019178,2]
[346393259,1734937838260,-500.0,0.00019178,2]
[346393260,1734937838270,-500.0,0.00019178,2]
[346393261,1734937838279,-500.0,0.00019178,2]
[346393262,1734937838288,-500.0,0.00019178,2]
[346393263,1734937838297,-500.0,0.00019178,2]
[346393264,1734937838306,-502.701895,0.00019178,2]
[346393265,1734937838316,-500.0,0.00019178,2]
[346393266,1734937838325,-500.0,0.00019178,2]
[346393267,1734937838334,-500.0,0.00019178,2]
[346393268,1734937838342,-500.0,0.00019178,2]
[346393269,1734937838352,-503.59791088,0.00019178,2]
[346393270,1734937838361,-500.0,0.00019178,2]
[346393271,1734937838370,-500.0,0.00019178,2]
[346393272,1734937838379,-500.0,0.00019178,2]
[346393273,1734937838392,-500.0,0.00019178,2]
[346393274,1734937838401,-500.0,0.00019178,2]
[346393275,1734937838410,-500.0,0.00019178,2]
[346393276,1734937838419,-500.0,0.00019178,2]
[346393277,1734937838430,-501.3386112,0.00019178,2]
[346393278,1734937838439,-502.6443457,0.00019178,2]
[346393279,1734937838448,-504.86263647,0.00019178,2]
[346393280,1734937838458,-194.03337043,0.00019178,2]
[346393281,1734937838467,-500.0,0.00019178,2]
[346393282,1734937838476,-501.55027948,0.00019178,2]
[346393283,1734937838486,-500.0,0.00019178,2]
[346393300,1734937838713,-500.0,0.00019178,2]
[346393303,1734937838723,-500.0,0.00019178,2]
[346393306,1734937838733,-500.0,0.00019178,2]
[346393309,1734937838742,-500.0,0.00019178,2]
[346393312,1734937838751,-500.0,0.00019178,2]
[346393315,1734937838760,-500.0,0.00019178,2]
[346393318,1734937838769,-500.0,0.00019178,2]
[346393320,1734937838778,-500.0,0.00019178,2]
[346393322,1734937838787,-501.88735663,0.00019178,2]
[346393323,1734937838796,-500.0,0.00019178,2]
[346393324,1734937838806,-500.0,0.00019178,2]
[346393325,1734937838818,-500.0,0.00019178,2]
[346393326,1734937838827,-500.67332108,0.00019178,2]
[346393327,1734937838837,-500.0,0.00019178,2]
[346393328,1734937838846,-636.64780631,0.00019178,2]
[346393329,1734937838855,-500.0,0.00019178,2]
[346393330,1734937838865,-500.0,0.00019178,2]
[346393331,1734937838874,-501.04955382,0.00019178,2]
[346393332,1734937838884,-500.0,0.00019178,2]
[346393333,1734937838893,-500.0,0.00019178,2]
[346393334,1734937838903,-500.0,0.00019178,2]
[346393335,1734937838912,-500.0,0.00019178,2]
[346393336,1734937838921,-500.0,0.00019178,2]
[346393337,1734937838931,-502.83617064,0.00019178,2]
[346393338,1734937838940,-500.0,0.00019178,2]
[346393339,1734937838950,-500.0,0.00019178,2]
[346393340,1734937838959,-485.87786645,0.00019178,2]
[346393341,1734937838967,-500.0,0.00019178,2]
[346393342,1734937838976,-500.0,0.00019178,2]
[346393343,1734937838986,-500.0,0.00019178,2]
[346393344,1734937838995,-501.76360674,0.00019178,2]
[346393345,1734937839004,-500.0,0.00019178,2]
[346393346,1734937839013,-500.0,0.00019178,2]
[346393347,1734937839022,-500.0,0.00019178,2]
[346393348,1734937839031,-500.0,0.00019178,2]
[346393349,1734937839041,-500.0,0.00019178,2]
[346393350,1734937839050,-502.88193849,0.00019178,2]
[346393351,1734937839059,-500.0,0.00019178,2]
[346393352,1734937839070,-500.0,0.00019178,2]
[346393353,1734937839079,-500.0,0.00019178,2]
[346393354,1734937839089,-500.0,0.00019178,2]
[346393355,1734937839098,-500.0,0.00019178,2]
[346393356,1734937839107,-500.50094702,0.00019178,2]
[346393357,1734937839116,-500.0,0.00019178,2]
[346393358,1734937839125,-500.0,0.00019178,2]
[346393359,1734937839134,-500.0,0.00019178,2]
[346393360,1734937839143,-500.0,0.00019178,2]
[346393361,1734937839153,-500.0,0.00019178,2]
[346393362,1734937839162,-500.0,0.00019178,2]
[346393363,1734937839171,-500.0,0.00019178,2]
[346393364,1734937839181,-500.0,0.00019178,2]
[346393365,1734937839190,-500.0,0.00019178,2]
[346393366,1734937839199,-500.93414942,0.00019178,2]
[346393367,1734937839209,-500.0,0.00019178,2]
[346393368,1734937839218,-500.0,0.00019178,2]
[346393369,1734937839227,-500.0,0.00019178,2]
[346393370,1734937839237,-500.0,0.00019178,2]
[346393371,1734937839247,-500.0,0.00019178,2]
[346393372,1734937839256,-500.0,0.00019178,2]
[346393373,1734937839265,-500.0,0.00019178,2]
[346393374,1734937839274,-501.90295579,0.00019178,2]
[346393375,1734937839283,-500.0,0.00019178,2]
[346393376,1734937839292,-500.0,0.00019178,2]
[346393377,1734937839301,-519.77637156,0.00019178,2]
[346393378,1734937839310,-500.0,0.00019178,2]
[346393379,1734937839321,-500.0,0.00019178,2]
[346393380,1734937839331,-500.0,0.00019178,2]
[346393381,1734937839340,-501.73715399,0.00019178,2]
[346393382,1734937839349,-500.0,0.00019178,2]
[346393383,1734937839358,-500.0,0.00019178,2]
[346393384,1734937839367,-505.34667592,0.00019178,2]
[346393385,1734937839376,-509.52171408,0.00019178,2]
[346393386,1734937839387,-500.0,0.00019178,2]
[346393387,1734937839396,-299.44638814,0.00019178,2]
[346393388,1734937839405,-500.0,0.00019178,2]
[346393389,1734937839415,-500.0,0.00019178,2]
[346393390,1734937839424,-500.0,0.00019178,2]
[346393391,1734937839434,-500.0,0.00019178,2]
[346393392,1734937839442,-500.0,0.00019178,2]
[346393393,1734937839451,-500.0,0.00019178,2]
[346393394,1734937839460,-500.0,0.00019178,2]
[346393395,1734937839471,-500.0,0.00019178,2]
[346393396,1734937839481,-282.56610664,0.00019178,2]
[346393397,1734937839490,-500.0,0.00019178,2]
[346393398,1734937839500,-500.0,0.00019178,2]
[346393399,1734937839509,-502.40356596,0.00019178,2]
[346393400,1734937839519,-500.0,0.00019178,2]
[346393401,1734937839528,-500.0,0.00019178,2]
[346393402,1734937839537,-500.0,0.00019178,2]
[346393403,1734937839546,-500.0,0.00019178,2]
[346393404,1734937839556,-500.0,0.00019178,2]
[346393405,1734937839566,-500.0,0.00019178,2]
[346393406,1734937839576,-500.0,0.00019178,2]
[346393407,1734937839585,-500.0,0.00019178,2]
[346393408,1734937839595,-500.0,0.00019178,2]
[346393409,1734937839604,-500.0,0.00019178,2]
[346393410,1734937839613,-500.0,0.00019178,2]
[346393411,1734937839623,-500.0,0.00019178,2]
[346393412,1734937839633,-500.0,0.00019178,2]
[346393413,1734937839642,-500.0,0.00019178,2]
[346393414,1734937839652,-500.0,0.00019178,2]
[346393415,1734937839661,-546.88,0.00019178,2]
[346393416,1734937839670,-500.0,0.00019178,2]
[346393417,1734937839679,-500.0,0.00019178,2]
[346393418,1734937839688,-500.0,0.00019178,2]
[346393419,1734937839698,-500.0,0.00019178,2]
[346393420,1734937839708,-500.0,0.00019178,2]
[346393421,1734937839717,-500.0,0.00019178,2]
[346393422,1734937839726,-500.0,0.00019178,2]
[346393424,1734937839736,-500.0,0.00019178,2]
[346393426,1734937839745,-500.0,0.00019178,2]
[346393427,1734937839754,-500.0,0.00019178,2]
[346393428,1734937839763,-500.0,0.00019178,2]
[346393429,1734937839771,-500.0,0.00019178,2]
[346393430,1734937839780,-500.0,0.00019178,2]
[346393431,1734937839789,-500.0,0.00019178,2]
[346393432,1734937839798,-500.0,0.00019178,2]
[346393434,1734937839807,-500.0,0.00019178,2]
[346393435,1734937839818,-500.0,0.00019178,2]
[346393436,1734937839827,-500.0,0.00019178,2]
[346393437,1734937839836,-500.0,0.00019178,2]
[346393438,1734937839845,-352.74398157,0.00019178,2]
[346393439,1734937839854,-500.0,0.00019178,2]
[346393440,1734937839863,-500.0,0.00019178,2]
[346393441,1734937839872,-500.0,0.00019178,2]
[346393442,1734937839881,-509.11125759,0.00019178,2]
[346393443,1734937839890,-500.0,0.00019178,2]
[346393444,1734937839899,-500.0,0.00019178,2]
[346393445,1734937839908,-500.0,0.00019178,2]
[346393446,1734937839918,-260.42102437,0.00019178,2]
[346393447,1734937839927,-500.0,0.00019178,2]
[346393448,1734937839936,-507.2514103,0.00019178,2]
[346393449,1734937839945,-500.0,0.00019178,2]
[346393450,1734937839955,-500.0,0.00019178,2]
[346393451,1734937839964,-592.31,0.00019178,2]
[346393452,1734937839973,-500.0,0.00019178,2]
[346393453,1734937839982,-500.0,0.00019178,2]
[346393454,1734937839991,-500.0,0.00019178,2]
[346393455,1734937840000,-500.0,0.00019178,2]
[346393456,1734937840009,-500.0,0.00019178,2]
[346393457,1734937840018,-500.0,0.00019178,2]
[346393458,1734937840027,-500.0,0.00019178,2]
[346393459,1734937840036,-500.0,0.00019178,2]
[346393460,1734937840045,-500.0,0.00019178,2]
[346393461,1734937840054,-500.0,0.00019178,2]
[346393462,1734937840063,-500.0,0.00019178,2]
[346393463,1734937840074,-500.0,0.00019178,2]
[346393464,1734937840083,-500.0,0.00019178,2]
[346393465,1734937840094,-500.0,0.00019178,2]
[346393466,1734937840103,-500.0,0.00019178,2]
[346393467,1734937840112,-583.0,0.00019178,2]
[346393468,1734937840122,-500.0,0.00019178,2]
[346393469,1734937840131,-500.0,0.00019178,2]
[346393470,1734937840140,-504.22716712,0.00019178,2]
[346393471,1734937840149,-500.0,0.00019178,2]
[346393472,1734937840158,-500.0,0.00019178,2]
[346393473,1734937840167,-500.0,0.00019178,2]
[346393474,1734937840176,-500.0,0.00019178,2]
[346393475,1734937840185,-500.0,0.00019178,2]
[346393476,1734937840194,-500.0,0.00019178,2]
[346393477,1734937840203,-500.0,0.00019178,2]
[346393478,1734937840212,-500.0,0.00019178,2]
[346393479,1734937840222,-500.0,0.00019178,2]
[346393480,1734937840233,-500.0,0.00019178,2]
[346393481,1734937840242,-500.0,0.00019178,2]
[346393482,1734937840251,-539.59238799,0.00019178,2]
[346393483,1734937840260,-500.0,0.00019178,2]
[346393484,1734937840269,-500.0,0.00019178,2]
[346393485,1734937840278,-500.0,0.00019178,2]
[346393486,1734937840287,-500.0,0.00019178,2]
[346393487,1734937840296,-500.0,0.00019178,2]
[346393488,1734937840310,-500.0,0.00019178,2]
[346393489,1734937840320,-510.11353443,0.00019178,2]
[346393490,1734937840329,-500.0,0.00019178,2]
[346393491,1734937840338,-500.0,0.00019178,2]
[346393492,1734937840348,-500.0,0.00019178,2]
[346393493,1734937840357,-500.0,0.00019178,2]
[346393494,1734937840366,-500.0,0.00019178,2]
[346393495,1734937840375,-500.0,0.00019178,2]
[346393496,1734937840387,-500.0,0.00019178,2]
[346393497,1734937840396,-500.0,0.00019178,2]
[346393498,1734937840405,-500.0,0.00019178,2]
[346393499,1734937840415,-500.0,0.00019178,2]
[346393500,1734937840424,-500.0,0.00019178,2]
[346393501,1734937840434,-500.0,0.00019178,2]
[346393503,1734937840443,-500.0,0.00019178,2]
[346393504,1734937840452,-500.0,0.00019178,2]
[346393505,1734937840464,-500.0,0.00019178,2]
[346393506,1734937840474,-500.0,0.00019178,2]
[346393507,1734937840483,-500.0,0.00019178,2]
[346393508,1734937840492,-500.0,0.00019178,2]
[346393509,1734937840501,-500.0,0.00019178,2]
[346393512,1734937840511,-500.0,0.00019178,2]
[346393513,1734937840520,-500.0,0.00019178,2]
[346393514,1734937840530,-500.0,0.00019178,2]
[346393516,1734937840539,-500.0,0.00019178,2]
[346393518,1734937840549,-500.0,0.00019178,2]
[346393520,1734937840558,-500.0,0.00019178,2]
[346393522,1734937840569,-500.0,0.00019178,2]
[346393523,1734937840580,-500.0,0.00019178,2]
[346393524,1734937840590,-500.0,0.00019178,2]
[346393525,1734937840599,-500.0,0.00019178,2]
[346393526,1734937840609,-500.0,0.00019178,2]
[346393527,1734937840618,-500.0,0.00019178,2]
[346393528,1734937840628,-506.16872799,0.00019178,2]
[346393529,1734937840638,-500.0,0.00019178,2]
[346393530,1734937840647,-500.0,0.00019178,2]
[346393531,1734937840656,-500.0,0.00019178,2]
[346393532,1734937840666,-500.0,0.00019178,2]
[346393533,1734937840675,-500.0,0.00019178,2]
[346393534,1734937840684,-500.0,0.00019178,2]
[346393535,1734937840693,-500.0,0.00019178,2]
[346393536,1734937840703,-500.0,0.00019178,2]
[346393537,1734937840712,-536.37645136,0.00019178,2]
[346393538,1734937840721,-500.0,0.00019178,2]
[346393539,1734937840730,-200.0,0.00019178,2]
[346393540,1734937840739,-513.14,0.00019178,2]
[346393541,1734937840748,-500.0,0.00019178,2]
[346393542,1734937840757,-500.0,0.00019178,2]
[346393543,1734937840767,-500.0,0.00019178,2]
[346393544,1734937840776,-500.0,0.00019178,2]
[346393545,1734937840785,-500.0,0.00019178,2]
[346393546,1734937840794,-500.0,0.00019178,2]
[346393547,1734937840803,-500.0,0.00019178,2]
[346393548,1734937840811,-500.0,0.00019178,2]
[346393549,1734937840821,-500.0,0.00019178,2]